fUSD/lending_fUSD_20250116
["ID","MTS","AMOUNT","RATE_DAILY","PERIOD"]
[349218573,1737040260832,-1617.00001,0.00039259,120]
[349218574,1737040260843,-2466.06461614,0.00039259,120]
[349218575,1737040260851,-1254.00205386,0.00039263,120]
[349218576,1737040260859,-153.32,0.00039265,120]
[349218577,1737040260867,-195.10095557,0.00039265,120]
[349218578,1737040260877,-195.1,0.00039265,120]
[349218579,1737040260887,-151.74518767,0.00039265,120]
[349218580,1737040260897,-151.74518767,0.00039265,120]
[349218581,1737040260907,-151.74518767,0.00039265,120]
[349218582,1737040260917,-151.74518767,0.00039265,120]
[349218583,1737040260927,-24.38162375,0.00039265,120]
[349218584,1737040260939,-127.36356392,0.00039265,120]
[349218585,1737040260948,-151.74,0.00039265,120]
[349218586,1737040260957,-330.33688711,0.00039265,2]
[349218587,1737040260968,-151.12739593,0.00039265,8]
[349218588,1737040260977,-1683.27316304,0.00039266,120]
[349218589,1737040260988,-1281.10626026,0.00039266,120]
[349218590,1737040261000,-730.43667022,0.00039266,120]
[349218591,1737040261009,-448.25086654,0.00039266,120]
[349218592,1737040261019,-806.12891776,0.00039267,120]
[349218593,1737040261030,-447.8731361,0.00039267,120]
[349218594,1737040261040,-200.0,0.0003927,120]
[349218595,1737040261049,-200.0,0.00039271,120]
[349218596,1737040261058,-10501.57437933,0.00039272,120]
[349218597,1737040261068,-2940.87570224,0.00039273,120]
[349218598,1737040261078,-150.0,0.00039273,5]
[349218599,1737040261088,-1597.98,0.00039273,18]
[349218600,1737040261098,-722.63,0.00039273,18]
[349218601,1737040261108,-500.0,0.00039273,18]
[349218602,1737040261117,-704.60758164,0.00039274,120]
[349218603,1737040261128,-1612.45183857,0.00039274,120]
[349218604,1737040261140,-5368.25816041,0.00039274,120]
[349218605,1737040261152,-4056.02714073,0.00039274,120]
[349218606,1737040261163,-2940.87570224,0.00039276,120]
[349218607,1737040261172,-500.0,0.00039279,18]
[349218608,1737040261182,-651.01905808,0.00039279,8]
[349218609,1737040261191,-3694.81609352,0.0003928,120]
[349218610,1737040261201,-2940.87570224,0.00039282,120]
[349218611,1737040261211,-3940.39,0.00039285,18]
[349218612,1737040261220,-500.0,0.00039285,18]
[349218613,1737040261230,-500.0,0.00039285,18]
[349218614,1737040261241,-500.0,0.00039285,18]
[349218615,1737040261251,-556.04,0.00039285,18]
[349218616,1737040261260,-649.66342617,0.00039285,18]
[349218617,1737040261270,-3256.12,0.00039285,18]
[349218618,1737040261280,-665.87,0.00039285,18]
[349218619,1737040261289,-500.0,0.00039285,18]
[349218620,1737040261299,-500.0,0.00039285,18]
[349218621,1737040261309,-664.06,0.00039285,18]
[349218622,1737040261319,-945.26,0.00039285,18]
[349218623,1737040261328,-5726.74136601,0.00039286,120]
[349218624,1737040600577,193.32,0.00010137,2]
[349218626,1737040927384,-151.0,0.0003,120]
[349218627,1737041047547,20000.0,0.00012,2]
[349218628,1737041212878,-10000.0,0.00012,2]
[349218629,1737041233103,-1044.178653,0.0001194,2]
[349218630,1737041233126,-150.0,0.00011999,2]
[349218631,1737041233149,-18425.9174231,0.00012,2]
[349218632,1737041242818,-20000.0,0.00012,2]
[349218633,1737041243111,-3271.70685851,0.00012,2]
[349218634,1737041249096,-2020.41934807,0.00012,2]
[349218635,1737041249127,-40054.32452532,0.00012,2]
[349218636,1737041251152,-36375.57643707,0.00012,2]
[349218637,1737041284322,99806.68,0.0001,2]
[349218638,1737041284352,15957.72,0.0001,2]
[349218639,1737041284377,16455.0,0.0001,2]
[349218640,1737041284409,1072980.72987911,0.0001,2]
[349218648,1737041351107,-47712.94934,0.00011,2]
[349218649,1737041357113,-69605.90592375,0.00011,2]
[349218650,1737041357140,-2290.65251448,0.00011899,2]
[349218651,1737041357164,-1000.0,0.00011999,2]
[349218652,1737041357189,-212475.63916177,0.00012,2]
[349218656,1737041358097,-4791.436972,0.00012,2]
[349218657,1737041361102,-1569.35142,0.00012,2]
[349218658,1737041366092,-5878.975998,0.00012,2]
[349218659,1737041367103,-1822.324014,0.00012,2]
[349218660,1737041372100,-138552.9684,0.00012,2]
[349218661,1737041372130,-390004.3966,0.00012,2]
[349218662,1737041373183,-555.8046284,0.00012,2]
[349218681,1737041431786,-150.0,0.00011999,2]
[349218682,1737041431796,-108.92515224,0.00012,2]
[349218683,1737041431809,-2627.20289778,0.00012,2]
[349218684,1737041431821,-35391.70442041,0.00012,2]
[349218685,1737041431833,-523.05488376,0.00012,2]
[349218686,1737041431849,-530.31051411,0.00012,2]
[349218687,1737041431860,-387.0,0.00012,2]
[349218688,1737041431872,-360607.18098497,0.00012,2]
[349218689,1737041431914,-4263.63342939,0.00012,2]
[349218690,1737041431927,-75501.6609624,0.00012,2]
[349218691,1737041432444,-507.959,0.00012,2]
[349218703,1737041437564,-2147210.31197575,0.00012,2]
[349218704,1737041437629,-862.60388176,0.00012,2]
[349218705,1737041437641,-8827.4078344,0.00012,2]
[349218710,1737041438331,-1073.29436294,0.00012,2]
[349218711,1737041438410,-25819.8454,0.00012,2]
[349218714,1737041439763,-484.85462293,0.00012,2]
[349218715,1737041439775,-5474.09988691,0.00012,2]
[349218716,1737041439788,-415.1,0.00012,2]
[349218717,1737041439802,-323.79,0.00012,2]
[349218718,1737041439937,-14185.30066,0.00012,2]
[349218719,1737041439949,-4322.6440055,0.00012,2]
[349218720,1737041440034,-3694.87907266,0.00012,2]
[349218721,1737041440050,-11850.91204221,0.00012,2]
[349218722,1737041440062,-3314.06187502,0.00012,2]
[349218723,1737041440078,-15667.79575117,0.00012,2]
[349218824,1737041442582,-178476.28525734,0.00012,2]
[349218826,1737041442595,-5302.55516257,0.00012,2]
[349218833,1737041442662,-4903.8,0.00012,2]
[349218853,1737041442840,-2591.83125766,0.00012,2]
[349218855,1737041442852,-11876.39998308,0.00012,2]
[349218857,1737041442864,-300.0,0.00012,2]
[349218860,1737041442884,-1560.02662825,0.00012,2]
[349218862,1737041442895,-411.04765175,0.00012,2]
[349218865,1737041442914,-7445.24925649,0.00012,2]
[349218867,1737041442929,-1023.786069,0.00012,2]
[349218932,1737041445528,-6401.99999999,0.00012,2]
[349218933,1737041445589,-7323.39423256,0.00012,2]
[349218934,1737041445649,-981.53,0.00012,2]
[349218935,1737041445664,-3269.4,0.00012,2]
[349218936,1737041445675,-8224.3540861,0.00012,2]
[349218937,1737041445713,-223788.52153913,0.00012,2]
[349218938,1737041445725,-432.09496654,0.00012,2]
[349218939,1737041445737,-4958.317,0.00012,2]
[349218940,1737041445748,-1200.0,0.00012,2]
[349218941,1737041445759,-988.49,0.00012,2]
[349218942,1737041445770,-4033.28388347,0.00012,2]
[349218943,1737041445781,-5132.2190332,0.00012,2]
[349218944,1737041445793,-2112.7,0.00012,2]
[349218945,1737041445803,-10045.4619323,0.00012,2]
[349218946,1737041445814,-676.53678375,0.00012,2]
[349218947,1737041445898,-363.52298419,0.00012,2]
[349218948,1737041445913,-265.104,0.00012,2]
[349218949,1737041445927,-1364.749998,0.00012,2]
[349218950,1737041445939,-4929.25672,0.00012,2]
[349218951,1737041445950,-394.10692852,0.00012,2]
[349218952,1737041445965,-6252.6226845,0.00012,2]
[349218953,1737041445994,-1957.704,0.00012,2]
[349218954,1737041446005,-313.06330969,0.00012,2]
[349218955,1737041446016,-16021.28016304,0.00012,2]
[349218956,1737041446034,-24984.8594662,0.00012,2]
[349218958,1737041522781,-25000.0,0.00012,2]
[349218959,1737041571735,-300.0,0.0001182,2]
[349218965,1737041904727,-155.39,0.00010137,2]
[349218967,1737042098455,175.35,9.122e-05,2]
[349218968,1737042168358,782.500453,0.00010987,2]
[349218969,1737042255155,594.67,0.00010967,2]
[349218970,1737042301474,1570.36,0.00010912,2]
[349218971,1737042308666,1399.78,0.00010906,2]
[349218972,1737042334077,2000.0,0.00010897,2]
[349218973,1737042339674,200.0,0.00010897,2]
[349218974,1737042357823,1661.03,9.19e-05,2]
[349218977,1737042394102,800.0,0.00011008,2]
[349218978,1737042394126,800.0,0.00011008,2]
[349218979,1737042394149,800.0,0.00011008,2]
[349218980,1737042394172,800.0,0.00011008,2]
[349218981,1737042427537,166.66666668,0.00010908,2]
[349218982,1737042438503,198.98,0.0001085,2]
[349218983,1737042438743,198.98,0.00010904,2]
[349218984,1737042441089,-505.7859127,0.00011008,2]
[349218985,1737042443092,-187.04809142,0.00011008,2]
[349218986,1737042446100,-261.29337507,0.00011008,2]
[349218988,1737042534107,250.0,0.00010666,2]
[349218989,1737042535173,5646.29288032,0.00010666,2]
[349218992,1737042549101,-300.0,0.00010665,2]
[349218993,1737042549124,-18253.70711968,0.00010666,2]
[349218994,1737042549146,-449.54603425,0.00011005,2]
[349218995,1737042549168,-337.86436491,0.00011005,2]
[349218996,1737042549189,-2561.40893788,0.00011008,2]
[349218997,1737042549210,-166.66666666,0.00011105,2]
[349218998,1737042549239,-2506.56,0.00011108,2]
[349218999,1737042549262,-901.85819091,0.00011108,2]
[349219000,1737042549285,-200.0,0.00011163,2]
[349219001,1737042549307,-166.66666666,0.00011302,2]
[349219002,1737042549328,-300.0,0.00011307,2]
[349219003,1737042549350,-845.93043905,0.00011308,2]
[349219004,1737042551092,-884.21956095,0.00011308,2]
[349219005,1737042551114,-901.8581909,0.00011327,2]
[349219006,1737042551136,-175.35,0.00011402,2]
[349219007,1737042551159,-150.0,0.00011452,2]
[349219008,1737042551181,-1661.03,0.00011454,2]
[349219009,1737042551206,-1030.17,0.00011467,2]
[349219010,1737042551230,-824.25,0.00011469,2]
[349219011,1737042551252,-80.56179015,0.000115,2]
[349219012,1737042558182,-374.59,0.0001064,2]
[349219013,1737042558206,-3924.98720985,0.000115,2]
[349219014,1737042558229,-151.321,0.000115,2]
[349219015,1737042558254,-700.0,0.000115,4]
[349219016,1737042558276,-150.0,0.00011526,2]
[349219017,1737042558297,-21961.40819015,0.00011527,2]
[349219018,1737042559099,-7800.086266,0.00011527,2]
[349219042,1737042631819,-300.0,0.00011526,2]
[349219043,1737042631829,-39477.50554385,0.00011527,2]
[349219044,1737042631839,-901.8581909,0.00011545,2]
[349219045,1737042631849,-1500.0,0.000116,4]
[349219046,1737042631858,-16951.59924958,0.00011636,2]
[349219047,1737042631926,-430.68063875,0.00011636,2]
[349219048,1737042631938,-7783.93353467,0.00011636,2]
[349219049,1737042631948,-500.0,0.00011636,2]
[349219050,1737042631958,-162.73,0.00011645,2]
[349219051,1737042631969,-3155.54,0.00011664,2]
[349219052,1737042631980,-2200.0,0.000117,4]
[349219053,1737042631991,-300.0,0.00011754,2]
[349219054,1737042632000,-1852.42,0.00011754,2]
[349219055,1737042632010,-3000.0,0.000118,4]
[349219056,1737042632021,-3700.0,0.000119,4]
[349219057,1737042632030,-4005.57831837,0.000119,2]
[349219058,1737042632042,-160.08812971,0.000119,2]
[349219059,1737042632052,-150.90523377,0.00011973,2]
[349219060,1737042632062,-251.86843108,0.00011973,2]
[349219061,1737042632072,-159.91222005,0.00011973,2]
[349219062,1737042632082,-159.89958419,0.00011973,2]
[349219063,1737042632091,-159.08335931,0.00011973,2]
[349219064,1737042632101,-260.65295971,0.00011973,2]
[349219065,1737042632111,-160.04487024,0.00011973,2]
[349219066,1737042632120,-151.91914609,0.00011973,2]
[349219067,1737042632130,-261.98344919,0.00011973,2]
[349219068,1737042632139,-4789.63,0.00011982,2]
[349219069,1737042632149,-500.0,0.00011999,2]
[349219070,1737042632160,-33365.76771375,0.00012,2]
[349219071,1737042632221,-1261.30938777,0.00012,2]
[349219072,1737042632236,-928.07273729,0.00012,2]
[349219073,1737042632247,-526.71499881,0.00012,2]
[349219074,1737042632296,-905.59839347,0.00012,2]
[349219075,1737042632307,-94357.66170052,0.00012,2]
[349219076,1737042632326,-1917.25166952,0.00012,2]
[349219077,1737042632342,-129957.69427404,0.00012,2]
[349219078,1737042632353,-45212.04212638,0.00012,2]
[349219225,1737042637552,-384.47,0.00012,2]
[349219227,1737042637656,-1496.98676046,0.00012,2]
[349219228,1737042637779,-42214.87278436,0.00012,2]
[349219229,1737042637793,-4633145.44646402,0.00012,2]
[349219230,1737042637865,-642.41227,0.00012,2]
[349219231,1737042637916,-34554.67620174,0.00012,2]
[349219232,1737042637928,-28026.91151099,0.00012,2]
[349219233,1737042637938,-18942.39641516,0.00012,2]
[349219234,1737042637950,-18870.00000002,0.00012,2]
[349219235,1737042637962,-2418.90747007,0.00012,2]
[349219236,1737042637979,-997.39639989,0.00012,2]
[349219244,1737042639903,-552.04,0.00012,2]
[349219245,1737042639915,-345.10999,0.00012,2]
[349219246,1737042639927,-26971.99665557,0.00012,2]
[349219247,1737042639937,-160.20357774,0.00012,2]
[349219248,1737042639947,-221.15099385,0.00012,2]
[349219249,1737042639956,-5805.1543728,0.00012007,2]
[349219250,1737042640019,-2708.1656272,0.00012007,2]
[349219251,1737042640028,-1570.36,0.00012276,2]
[349219252,1737042640037,-164.03,0.00012315,2]
[349219253,1737042640047,-1500.0,0.00012322,2]
[349219254,1737042640056,-237.35,0.00012329,2]
[349219255,1737042640065,-250.0,0.00012396,2]
[349219256,1737042640074,-420.0,0.00012421,2]
[349219257,1737042640083,-255.0,0.00012587,2]
[349219258,1737042640092,-420.0,0.00012659,2]
[349219259,1737042640101,-8348.08747521,0.000129,7]
[349219260,1737042640112,-3427.5,0.000129,7]
[349219261,1737042640124,-2068.63438604,0.000129,7]
[349219262,1737042640135,-2395.98,0.000129,7]
[349219263,1737042640146,-943.19492342,0.000129,7]
[349219264,1737042640158,-512.27802841,0.000129,7]
[349219265,1737042640169,-375.47236334,0.000129,7]
[349219266,1737042640180,-6002.98822645,0.000129,7]
[349219267,1737042640207,-1660.283625,0.000129,7]
[349219268,1737042640262,-341.30572015,0.000129,7]
[349219269,1737042640303,-17023.69680339,0.000129,7]
[349219270,1737042640314,-1570.36,0.0001364,2]
[349219271,1737042640323,-246.0,0.00013645,2]
[349219272,1737042640333,-175.35,0.00013683,2]
[349219273,1737042640344,-179.98,0.00013699,2]
[349219274,1737042640354,-1661.03,0.00013718,2]
[349219275,1737042640364,-433.0,0.00013739,2]
[349219276,1737042640374,-587.0,0.00013904,2]
[349219277,1737042640383,-9628.71,0.00014338,2]
[349219278,1737042640392,-500.0,0.00014886,2]
[349219280,1737042640401,-1570.36,0.00015004,2]
[349219281,1737042640410,-736.0,0.00015007,2]
[349219282,1737042640420,-179.98,0.00015068,2]
[349219283,1737042640430,-753.0,0.0001527,2]
[349219284,1737042640440,-164.03,0.00015393,2]
[349219285,1737042640449,-1661.03,0.00015982,2]
[349219286,1737042640460,-824.25,0.00016057,2]
[349219287,1737042640470,-1570.36,0.00016368,2]
[349219288,1737042640480,-212.0,0.0001639,2]
[349219289,1737042640491,-179.98,0.00016438,2]
[349219290,1737042640501,-330.18,0.000172,2]
[349219291,1737042640511,-1661.03,0.00018246,2]
[349219292,1737042640525,-164.03,0.00018472,2]
[349219293,1737042640534,-4732.06461465,0.000199,7]
[349219294,1737042640545,-250.0,0.0002005,2]
[349219295,1737042640555,-1661.03,0.0002051,2]
[349219296,1737042640565,-3862.78,0.00020951,2]
[349219297,1737042640575,-299.99,0.00022562,7]
[349219298,1737042640584,-150.99,0.00022562,2]
[349219299,1737042640594,-9999.99,0.00022562,2]
[349219300,1737042640603,-90851.22565059,0.00022562,2]
[349219301,1737042640614,-395.77631984,0.00022562,2]
[349219312,1737042642780,-23063.07802957,0.00022562,2]
[349219314,1737042642789,-150.99,0.00022562,2]
[349219316,1737042642799,-499.99,0.00022562,2]
[349219318,1737042642808,-3596.39,0.00022562,2]
[349219320,1737042642818,-4129.71,0.00022562,2]
[349219322,1737042642827,-9040.55,0.00022562,2]
[349219323,1737042642836,-1661.03,0.00022773,2]
[349219324,1737042642845,-2900.0,0.00022824,2]
[349219325,1737042642855,-178.27211992,0.00022824,90]
[349219326,1737042642864,-151.39160181,0.00022824,30]
[349219327,1737042642873,-151.60911798,0.00022824,30]
[349219328,1737042642883,-500.0,0.00024932,2]
[349219329,1737042642893,-500.0,0.00024932,2]
[349219330,1737042642902,-500.0,0.00024932,2]
[349219331,1737042642912,-500.0,0.00024932,2]
[349219332,1737042642922,-1661.03,0.00025037,2]
[349219333,1737042642932,-153.273363,0.000255,2]
[349219334,1737042642943,-1000.0,0.00026588,2]
[349219335,1737042642953,-1661.03,0.00027301,2]
[349219336,1737042642963,-21615.23834599,0.00028,4]
[349219337,1737042642974,-155.39,0.00028258,2]
[349219338,1737042642984,-1850.84,0.0002956,2]
[349219339,1737042642994,-1661.03,0.00029565,2]
[349219340,1737042643004,-700.0,0.000299,10]
[349219341,1737042643015,-1000.0,0.00029912,2]
[349219342,1737042643025,-153.0,0.00029988,5]
[349219343,1737042643035,-156.281,0.0003,120]
[349219344,1737042643045,-151.0,0.0003,120]
[349219345,1737042643057,-151.0,0.0003,120]
[349219346,1737042643067,-330.18,0.000303,7]
[349219347,1737042643076,-1628.0,0.000315,2]
[349219348,1737042643086,-1661.03,0.00031829,2]
[349219349,1737042643096,-221.0,0.000322,5]
[349219350,1737042643105,-151.0,0.00032301,120]
[349219351,1737042643115,-151.0,0.00032849,120]
[349219352,1737042643125,-1000.0,0.00033235,2]
[349219353,1737042643139,-156.286,0.00034,120]
[349219354,1737042643153,-1661.03,0.00034093,2]
[349219355,1737042643162,-150.0,0.00034548,10]
[349219356,1737042643172,-151.0,0.00034603,120]
[349219357,1737042643181,-97366.29326828,0.000349,2]
[349219358,1737042643190,-151.0,0.00035699,120]
[349219359,1737042643199,-4005.549,0.00036125,44]
[349219360,1737042643209,-151.321,0.00036125,44]
[349219361,1737042643218,-1661.03,0.00036357,2]
[349219362,1737042643227,-200.0,0.0003645,2]
[349219363,1737042643237,-200.0,0.0003645,2]
[349219364,1737042643246,-1000.0,0.00036559,2]
[349219365,1737042643256,-1268.0,0.0003682,2]
[349219366,1737042643265,-2016.0,0.0003682,2]
[349219369,1737042643274,-150.0,0.0003682,2]
[349219371,1737042643283,-635.0,0.0003682,2]
[349219374,1737042643293,-567.0,0.0003682,2]
[349219376,1737042643304,-1862.0,0.0003682,2]
[349219378,1737042643313,-2945.0,0.0003682,2]
[349219380,1737042643322,-906.0,0.0003682,2]
[349219382,1737042643331,-820.0,0.0003682,2]
[349219384,1737042643340,-1260.0,0.0003682,2]
[349219386,1737042643349,-3980.0,0.0003682,2]
[349219387,1737042643359,-537.0,0.0003682,2]
[349219388,1737042643369,-150.0,0.0003682,2]
[349219389,1737042643379,-1174.0,0.0003682,2]
[349219390,1737042643389,-150.0,0.0003682,2]
[349219391,1737042643399,-3898.0,0.0003682,2]
[349219392,1737042643409,-150.0,0.0003682,2]
[349219393,1737042643419,-150.0,0.0003682,2]
[349219394,1737042643429,-151.0,0.00036904,120]
[349219395,1737042643439,-206.2248431,0.00037043,9]
[349219396,1737042643448,-781.1,0.00037046,120]
[349219397,1737042643459,-330.18,0.000371,14]
[349219398,1737042643469,-437.34,0.0003726,2]
[349219399,1737042643483,-436.07,0.0003726,2]
[349219400,1737042643493,-300.0,0.0003726,2]
[349219401,1737042643503,-150.0,0.0003726,2]
[349219402,1737042643514,-150885.056036,0.00037311,25]
[349219403,1737042643526,-200.0,0.0003733,2]
[349219404,1737042643536,-200.0,0.0003733,2]
[349219405,1737042643547,-437.34,0.00037456,2]
[349219406,1737042643557,-150.0,0.00037456,2]
[349219407,1737042643567,-33577.38956234,0.00037688,2]
[349219408,1737042643578,-171.08,0.00037958,2]
[349219409,1737042643587,-22711.749,0.00038,120]
[349219410,1737042643598,-200.23500776,0.00038,2]
[349219411,1737042643609,-156.252,0.00038,120]
[349219412,1737042643619,-150.0,0.00038082,2]
[349219413,1737042643629,-150.0,0.00038082,2]
[349219414,1737042643639,-200.0,0.0003821,2]
[349219415,1737042643840,-200.0,0.0003821,2]
[349219416,1737042643893,-5285.8264,0.00038256,2]
[349219417,1737042643904,-159.066444,0.00038356,18]
[349219418,1737042643914,-159.066444,0.00038356,18]
[349219419,1737042643924,-159.066444,0.00038356,18]
[349219420,1737042643935,-159.066444,0.00038356,18]
[349219421,1737042643944,-159.066444,0.00038356,18]
[349219422,1737042643954,-159.066444,0.00038356,18]
[349219423,1737042643963,-159.066444,0.00038356,18]
[349219424,1737042643972,-298.193889,0.00038356,18]
[349219425,1737042643981,-298.193889,0.00038356,18]
[349219426,1737042643990,-298.193889,0.00038356,18]
[349219427,1737042643999,-298.193889,0.00038356,18]
[349219428,1737042644009,-298.193889,0.00038356,18]
[349219429,1737042644018,-298.193889,0.00038356,18]
[349219430,1737042644027,-298.193889,0.00038356,18]
[349219431,1737042644037,-152.087135,0.00038356,18]
[349219432,1737042644046,-152.087135,0.00038356,18]
[349219433,1737042644060,-180.195434,0.00038356,18]
[349219434,1737042644070,-180.195434,0.00038356,18]
[349219435,1737042644079,-180.195434,0.00038356,18]
[349219436,1737042644089,-180.195434,0.00038356,18]
[349219437,1737042644102,-180.195434,0.00038356,18]
[349219438,1737042644112,-180.195434,0.00038356,18]
[349219439,1737042644122,-180.195434,0.00038356,18]
[349219440,1737042644132,-172.563436,0.00038356,18]
[349219441,1737042644143,-172.563436,0.00038356,18]
[349219442,1737042644152,-172.563436,0.00038356,18]
[349219443,1737042644162,-172.563436,0.00038356,18]
[349219444,1737042644172,-172.563436,0.00038356,18]
[349219445,1737042644183,-172.563436,0.00038356,18]
[349219446,1737042644193,-172.563436,0.00038356,18]
[349219447,1737042644202,-168.085348,0.00038356,18]
[349219448,1737042644212,-156.791047,0.00038356,18]
[349219449,1737042644222,-362.71843352,0.00038356,18]
[349219450,1737042644231,-500.76878672,0.00038356,18]
[349219451,1737042644240,-500.0,0.00038356,18]
[349219452,1737042644250,-500.0,0.00038356,18]
[349219453,1737042644260,-491.74730206,0.00038356,18]
[349219454,1737042644270,-500.0,0.00038356,18]
[349219455,1737042644279,-500.0,0.00038356,18]
[349219456,1737042644291,-199.52248551,0.00038356,18]
[349219457,1737042644302,-500.0,0.00038356,18]
[349219458,1737042644311,-500.0,0.00038356,18]
[349219459,1737042644321,-500.0,0.00038356,18]
[349219460,1737042644331,-500.0,0.00038356,18]
[349219461,1737042644340,-500.0,0.00038356,18]
[349219462,1737042644350,-500.0,0.00038356,18]
[349219463,1737042644360,-500.0,0.00038356,18]
[349219464,1737042644370,-500.0,0.00038356,18]
[349219465,1737042644380,-500.0,0.00038356,18]
[349219466,1737042644389,-500.0,0.00038356,18]
[349219467,1737042644399,-500.0,0.00038356,18]
[349219468,1737042644409,-500.0,0.00038356,18]
[349219469,1737042644418,-500.0,0.00038356,18]
[349219470,1737042644428,-500.0,0.00038356,18]
[349219471,1737042644437,-500.0,0.00038356,18]
[349219472,1737042644447,-500.0,0.00038356,18]
[349219473,1737042644457,-500.0,0.00038356,18]
[349219474,1737042644466,-551.54020509,0.00038356,18]
[349219475,1737042644476,-500.0,0.00038356,18]
[349219476,1737042644486,-500.0,0.00038356,18]
[349219477,1737042644495,-500.0,0.00038356,18]
[349219478,1737042644504,-500.0,0.00038356,18]
[349219479,1737042644515,-500.0,0.00038356,18]
[349219480,1737042644525,-500.0,0.00038356,18]
[349219481,1737042644534,-500.0,0.00038356,18]
[349219482,1737042644544,-500.0,0.00038356,18]
[349219483,1737042644556,-500.0,0.00038356,18]
[349219484,1737042644566,-500.0,0.00038356,18]
[349219485,1737042644575,-1233.51,0.00038356,18]
[349219486,1737042644584,-1233.51,0.00038356,18]
[349219487,1737042644596,-1233.51,0.00038356,18]
[349219488,1737042644605,-1233.51,0.00038356,18]
[349219489,1737042644615,-1233.51,0.00038356,18]
[349219490,1737042644625,-1233.51,0.00038356,18]
[349219491,1737042644634,-1233.51,0.00038356,18]
[349219492,1737042644643,-500.0,0.00038356,18]
[349219493,1737042644653,-1233.51,0.00038356,18]
[349219494,1737042644662,-1233.51,0.00038356,18]
[349219495,1737042644671,-500.0,0.00038356,18]
[349219496,1737042644681,-1233.51,0.00038356,18]
[349219497,1737042644691,-500.0,0.00038356,18]
[349219498,1737042644700,-1233.51,0.00038356,18]
[349219499,1737042644709,-500.0,0.00038356,18]
[349219500,1737042644719,-1233.51,0.00038356,18]
[349219501,1737042644729,-500.0,0.00038356,18]
[349219502,1737042644738,-1233.51,0.00038356,18]
[349219503,1737042644747,-500.0,0.00038356,18]
[349219504,1737042644756,-1233.51,0.00038356,18]
[349219505,1737042644766,-516.30234507,0.00038356,18]
[349219506,1737042644775,-1233.51,0.00038356,18]
[349219507,1737042644792,-1233.51,0.00038356,18]
[349219508,1737042644804,-1233.51,0.00038356,18]
[349219509,1737042644814,-1233.51,0.00038356,18]
[349219510,1737042644823,-1233.51,0.00038356,18]
[349219511,1737042644833,-1233.51,0.00038356,18]
[349219512,1737042644843,-1233.51,0.00038356,18]
[349219513,1737042644853,-1233.51,0.00038356,18]
[349219514,1737042644862,-1233.51,0.00038356,18]
[349219515,1737042644873,-1233.57752032,0.00038356,18]
[349219516,1737042644883,-385.59468069,0.00038356,18]
[349219517,1737042644893,-500.0,0.00038356,18]
[349219518,1737042644903,-500.0,0.00038356,18]
[349219519,1737042644913,-241.83967094,0.00038356,18]
[349219520,1737042644922,-505.81854637,0.00038356,18]
[349219521,1737042644932,-500.0,0.00038356,18]
[349219522,1737042644941,-500.0,0.00038356,18]
[349219523,1737042644951,-500.0,0.00038356,18]
[349219524,1737042644961,-500.0,0.00038356,18]
[349219525,1737042644971,-500.0,0.00038356,18]
[349219526,1737042644981,-500.0,0.00038356,18]
[349219527,1737042644991,-500.0,0.00038356,18]
[349219528,1737042645001,-500.0,0.00038356,18]
[349219529,1737042645010,-500.0,0.00038356,18]
[349219530,1737042645020,-500.0,0.00038356,18]
[349219531,1737042645029,-328.93047621,0.00038356,18]
[349219532,1737042645039,-500.0,0.00038356,18]